Cogmind - Beta 15 @@@ ROGUE MODE // 2025.07.09 @ 21:08:49 Player: Skysub Result: Destroyed self with Mini Grenade Launcher Performance ------------- Evolutions (0) 0 Regions Visited (3) 600 Robots Destroyed (46) 230 Value Destroyed (1047) 1047 Prototype IDs (24) 480 Alien Tech Used (0) 0 Bonus (779) 779 TOTAL SCORE: 3136 Bonus ------- Registered with UFD 300 Met Optimus in HQ 500 Friendly Fire -21 Cogmind --------- Core Integrity 0/250 Matter 270/300 Energy 160/160 System Corruption 0% Temperature Cool (0) Movement Rolling (115) Ox1 Location -8/Scraptown Parts ------- > --- POWER (1) -------- Light Fission Core > --- PROPULSION (2) --- Compact Wheel Compact Wheel > --- UTILITY (2) ------ Large Storage Unit Makeshift Light Armor Plating > --- WEAPON (2) ------- Mini Grenade Launcher DM-GVY's Chainsaw > --- INVENTORY (15) --- Ballwheel Medium Storage Unit Rocket Booster Structural Scanner Enhanced Optical Array Experimental Sensor Array Actuator Array Makeshift Hacking Suite System Shield DRS Beacon (Ready) Botcube Peak State ------------ > --- POWER ------------ Light Fission Core > --- PROPULSION ------- Compact Wheel Compact Wheel > --- UTILITY ---------- Large Storage Unit Rocket Booster > --- WEAPON ----------- Mini Grenade Launcher DM-GVY's Chainsaw > --- INVENTORY -------- Ballwheel Medium Storage Unit Structural Scanner Enhanced Optical Array Experimental Sensor Array Actuator Array Light Armor Plating Hacking Suite System Shield Scythe DRS Beacon Botcube [Rating: 29] Favorites ----------- Power Light Ion Engine Engine Light Ion Engine Power Core Light Fission Core Propulsion Light Treads Treads Light Treads Wheel Compact Wheel Utility Large Storage Unit Device Structural Scanner Storage Large Storage Unit Protection Light Armor Plating Weapon Minigun Energy Gun Makeshift Laser Ballistic Gun Minigun Launcher Mini Grenade Launcher Impact Weapon Hammer Slashing Weapon Scythe Build | -11 -10 -10 -8 ------- Run | Yrd Mat Sub Scr Slots Evolved . | . . . . Power . | . . . . Propulsion . | . . . . Utility . | . . . . Weapon . | . . . . Parts Attached 34 | 6 7 9 12 Power 4 | 1 1 1 1 Engine 3 | 1 1 1 . Core 1 | . . . 1 Reactor . | . . . . Propulsion 8 | 2 1 3 2 Treads 6 | 2 1 3 . Leg . | . . . . Wheel 2 | . . . 2 Hover . | . . . . Flight . | . . . . Utility 9 | 1 4 . 4 Device 3 | . 2 . 1 Storage 3 | 1 1 . 1 Processor . | . . . . Hackware . | . . . . Protection 3 | . 1 . 2 Artifact . | . . . . Weapon 13 | 2 1 5 5 Energy Gun 2 | . . 2 . Energy Cannon . | . . . . Ballistic Gun 6 | 2 1 1 2 Ballistic Cannon . | . . . . Launcher 2 | . . 1 1 Special Weapon . | . . . . Impact Weapon 1 | . . 1 . Slashing Weapon 2 | . . . 2 Piercing Weapon . | . . . . Special Melee Weapon . | . . . . Unidentified Prototypes 1 | . . . 1 Parts Lost 11 | . 4 7 . Power 2 | . 1 1 . Propulsion 4 | . 1 3 . Utility 1 | . 1 . . Weapon 4 | . 1 3 . Highest Loss Streak 5 | . 4 5 . To Critical Strikes 1 | . . 1 . Average Backups 7 | 2 8 10 6 Power . | . . . . Propulsion 2 | . 3 4 1 Utility 3 | . 2 3 3 Weapon 1 | 1 2 2 1 Tool/Special . | . . . . Unused Backups 40 | . 1 2 37 Power 3 | . . . 3 Propulsion 16 | . . 2 14 Utility 16 | . . . 16 Weapon 5 | . 1 . 4 Tool/Special . | . . . . Average Slot Usage (%) 83 | . 94 95 76 Engine 4 | . 12 10 . Treads 24 | . 27 27 22 Wheel 3 | . . . 5 Device 11 | . 8 14 12 Storage 13 | . 14 14 13 Energy Gun 3 | . . 8 4 Ballistic Gun 15 | . 28 16 10 Impact Weapon 3 | . . 2 4 Peak Build Rating 29 | 6 8 15 29 Average Rating 10 | 5 7 10 11 On Entrance 7 | . 6 8 15 Naked Turns 46 | . . . 46 Heaviest Build 200 | 11 30 31 200 Greatest Support 40 | 40 40 40 40 Greatest Overweight (x) 66 | . 1 1 66 Average Overweight (x) . | . . . . Largest Inventory Capacity 35 | 8 15 15 35 Average Capacity 14 | 7 13 15 15 Most Carried 15 | 4 12 15 15 Average Carried 8 | 2 8 11 7 Final Capacity 15 | 8 15 15 15 Final Carried 15 | 4 11 15 14 Class Distribution -------------------- 88% | Mutant 8% | Scavenger-Mutant 3% | Hauler-Mutant Dominant Class ---------------- Mutant | -10/Materials Scavenger-Mutant | -10/Subcaves Mutant | -8/Scraptown Resources | -11 -10 -10 -8 ----------- Run | Yrd Mat Sub Scr Matter Collected 1209 | 280 454 255 220 Remotely . | . . . . Salvage Created 1445 | 122 1060 263 . Parts 93 | 7 72 14 . Haulers Intercepted 2 | . 2 . . Recyclers Shooed 3 | 1 2 . . Parts Field Recycled . | . . . . Retrieved Matter . | . . . . Parts Self-Destructed 11 | . . 11 . Prevented . | . . . . Kills | -11 -10 -10 -8 ------- Run | Yrd Mat Sub Scr Combat Hostiles Destroyed 30 | . 22 8 . Guns 27 | . 22 5 . AOE 3 | . . 3 . Classes Destroyed 10 | 2 6 2 . Builder 3 | . 3 . . Tunneler 3 | 2 1 . . Hauler 2 | . 2 . . Recycler 1 | 1 . . . Operator 1 | . 1 . . Turret 3 | . . 2 1 Watcher 3 | . 3 . . Swarmer 9 | . 6 3 . Grunt 16 | . 16 . . Subdweller 5 | . . 5 . Best Kill Streak 5 | 3 5 3 1 Combat Bots Only 4 | . 4 3 . Max Kills in Single Turn 2 | 1 2 2 1 Gunslinging . | . . . . Exploded 2 | . . 2 . Melee . | . . . . Uniques/NPCs Destroyed . | . . . . Combat | -11 -10 -10 -8 -------- Run | Yrd Mat Sub Scr Hostile Shots Fired 277 | . 118 133 26 Missed 107 | . 35 56 16 Hits 170 | . 83 77 10 Projectile 170 | . 83 77 10 Critical Strikes 4 | . . 4 . Damage Taken 1701 | . 856 731 114 Core 259 | . 134 98 27 Absorbed by Shields . | . . . . Core Remaining (%) 100 | 100 . . . Volleys Fired 158 | 5 98 47 8 Largest 2 | 2 2 2 1 Hottest 150 | 40 40 150 30 Shots Fired 306 | 10 196 92 8 Gun 295 | 10 196 89 . Cannon . | . . . . Launcher 11 | . . 3 8 Special . | . . . . Kinetic 279 | 10 196 73 . Thermal 12 | . . 12 . Explosive 11 | . . 3 8 Electromagnetic 4 | . . 4 . Robot Hit Streak 15 | 7 15 9 5 Robot Miss Streak 6 | . 6 3 1 Penetration Max . | . . . . Secondary Targets 4 | . 3 1 . Max Gunslinging Chain 1 | . 1 1 . Shots Hit Robots 205 | 7 131 61 6 Core Hits 88 | 3 56 26 3 Critical Kills . | . . . . Critical Parts Destroyed 1 | . 1 . . Critical Strikes 4 | . 1 3 . Burn 3 | . . 3 . Destroy 1 | . 1 . . Melee Attacks 5 | . . 1 4 Impact 1 | . . 1 . Slashing 4 | . . . 4 Piercing . | . . . . Sneak Attacks . | . . . . Combat Hostiles . | . . . . Follow-up Attacks . | . . . . Damage Inflicted 2541 | 83 1545 760 153 Guns 2212 | 83 1538 591 . Cannons . | . . . . Explosions 322 | . . 169 153 Melee . | . . . . Ramming 7 | . 7 . . Kinetic 2031 | 83 1538 410 . Thermal 120 | . . 120 . Explosive 322 | . . 169 153 Electromagnetic 61 | . . 61 . Impact . | . . . . Slashing . | . . . . Piercing . | . . . . Highest Corruption . | . . . . Average Corruption . | . . . . Corruption Purged . | . . . . Corruption Blocked . | . . . . Overload Shots 2 | . . 2 . Effects 1 | . . 1 . Energy Bleed 1 | . . 1 . Overflow Damage 19 | . . 6 13 Projectiles . | . . . . Explosions 19 | . . 6 13 Melee . | . . . . Knockbacks . | . . . . Impact . | . . . . Kinetic . | . . . . Secondary . | . . . . Self-Inflicted Damage 88 | . . 47 41 Shots 3 | . . 2 1 Rammed 2 | . 2 . . Targets Rammed 2 | . 2 . . Kicked . | . . . . Crushed . | . . . . Highest Temperature 70 | . 14 70 68 Average Temperature 16 | . 4 23 36 Received Heat Transfer 702 | . 390 252 60 Siege Activations . | . . . . Martial Activations . | . . . . Shielding Activations . | . . . . Robots Disrupted . | . . . . Combat Hostiles . | . . . . Robots Corrupted . | . . . . Combat Hostiles . | . . . . Parts Fried . | . . . . Impact Corruptions . | . . . . Robots Melted . | . . . . Combat Hostiles . | . . . . Parts Melted 1 | . . 1 . Heat Transferred 481 | . . 481 . Parts Sabotaged . | . . . . Parts Stolen . | . . . . Parts Stripped . | . . . . Power Chain Reactions . | . . . . Alert | -11 -10 -10 -8 ------- Run | Yrd Mat Sub Scr Maximum Alert Level 1 | . 1 . . Low Security (%) 60 | 100 56 . . Level 1 39 | . 43 . . Level 2 . | . . . . Level 3 . | . . . . Level 4 . | . . . . Level 5 . | . . . . High Security . | . . . . Max Security . | . . . . Peak Influence 314 | 15 314 . . Initial . | . . . . Average 125 | 2 137 . . Influence Increases 1115 | 15 730 370 . Destroy 0b10 Robot/C 540 | . 440 100 . Destroy 0b10 Robot/NC 65 | 15 50 . . Destroy Leader 100 | . 100 . . Successful Hack 17 | . 17 . . Select Force Hacks 60 | . 60 . . Destroy Structure 3 | . 3 . . Lose Combat Pursuer 330 | . 60 270 . Influence Decreases 1115 | 15 456 564 80 Entered New Map 212 | . . 132 80 Time Decay 793 | 15 416 362 . Lost Part 110 | . 40 70 . Squads Dispatched 8 | . 8 . . Investigation 6 | . 6 . . Extermination . | . . . . Reinforcement 2 | . 2 . . Assault . | . . . . Garrison . | . . . . Intercept . | . . . . Searches Triggered . | . . . . Construction Impeded . | . . . . Haulers Reinforced . | . . . . Active Scanning Responses . | . . . . Cargo Convoy Interrupts . | . . . . Stealth | -11 -10 -10 -8 --------- Run | Yrd Mat Sub Scr Distress Signals 1 | . 1 . . Communications Jammed . | . . . . Distress Signals . | . . . . Times Spotted 58 | . 35 17 6 Peak Tracking Total 6 | . 5 6 3 Tactical Retreats 10 | . 4 5 1 Traps | -11 -10 -10 -8 ------- Run | Yrd Mat Sub Scr Traps Triggered 6 | . 4 2 . Indirectly . | . . . . Trap Hack Attempts . | . . . . Triggered . | . . . . Disarmed . | . . . . Reprogrammed . | . . . . Reused . | . . . . Traps Extracted . | . . . . Installed . | . . . . Triggered . | . . . . Machines | -11 -10 -10 -8 ---------- Run | Yrd Mat Sub Scr Machines Disabled 6 | . . 1 5 Max in Single Turn 2 | . . 1 2 Machines Repaired . | . . . . Machines Dismantled . | . . . . Machines Sabotaged . | . . . . Overloaded Fab Kills . | . . . . Hacking | -11 -10 -10 -8 --------- Run | Yrd Mat Sub Scr Machines Accessed 12 | . 8 1 3 Terminals 6 | . 6 . . Fabricators . | . . . . Repair Stations . | . . . . Recycling Units 2 | . 2 . . Scanalyzers . | . . . . Garrison Access . | . . . . Total Hacks 28 | . 22 1 5 Successful 23 | . 17 1 5 Failed 5 | . 5 . . Catastrophic . | . . . . Database Lockouts . | . . . . Manual 17 | . 17 . . Terminals 15 | . 15 . . Fabricators . | . . . . Repair Stations . | . . . . Recycling Units 7 | . 7 . . Scanalyzers . | . . . . Garrison Access . | . . . . Terminal Hacks 9 | . 3 1 5 Record 4 | . . . 4 Zone Layout 3 | . 3 . . Proto ID Catalog 2 | . . 1 1 Fabricator Hacks . | . . . . Repair Station Hacks . | . . . . Recycling Unit Hacks 4 | . 4 . . Report Inventory 2 | . 2 . . Retrieve Components 2 | . 2 . . Scanalyzer . | . . . . Garrison Access Hacks . | . . . . Unauthorized Hacks 10 | . 10 . . Terminals 8 | . 8 . . Botnet 3 | . 3 . . Skim 5 | . 5 . . Fabricators . | . . . . Repair Stations . | . . . . Recycling Units 2 | . 2 . . Tunnel 2 | . 2 . . Scanalyzers . | . . . . Garrison Access . | . . . . Data Cores Recovered 1 | . 1 . . Used . | . . . . Hacking Detections 4 | . 4 . . Full Trace Events . | . . . . Feedback Events . | . . . . Feedback Blocked . | . . . . Robot Schematics Acquired . | . . . . Robots Built . | . . . . Authchips . | . . . . Time . | . . . . Total Robot Build Rating . | . . . . Part Schematics Acquired . | . . . . Parts Built . | . . . . Authchips . | . . . . Time . | . . . . Total Part Build Rating . | . . . . Parts Repaired . | . . . . Time . | . . . . Parts Recycled . | . . . . Recycled Matter . | . . . . Retrieved Matter . | . . . . Retrieved Components 17 | . 17 . . Parts Scanalyzed . | . . . . Part Schematics Acquired . | . . . . Parts Damaged . | . . . . Bothacking | -11 -10 -10 -8 ------------ Run | Yrd Mat Sub Scr Used RIF Installer . | . . . . Robots Hacked . | . . . . Non-combat . | . . . . Combat . | . . . . Robot Hacks Applied . | . . . . Relay Couplers Released . | . . . . Fabnet Peak Effective % . | . . . . Robots Rewired . | . . . . Allies Hacked . | . . . . Hacks Repelled . | . . . . Allies | -11 -10 -10 -8 -------- Run | Yrd Mat Sub Scr Total Allies . | . . . . Largest Group . | . . . . Highest-Rated Group . | . . . . Highest-Rated Ally . | . . . . Total Orders . | . . . . Ally Attacks . | . . . . Total Damage . | . . . . Kills . | . . . . Allies Corrupted . | . . . . Allies Melted 2 | . . . 2 Intel | -11 -10 -10 -8 ------- Run | Yrd Mat Sub Scr Active Infowar (turns) 4704 | . 779 827 3098 Structural 4704 | . 779 827 3098 Robot Analysis Total . | . . . . Derelict Logs Recovered 6 | . . 1 5 Drone Launches . | . . . . Drone Recoveries . | . . . . Exploration | -11 -10 -10 -8 ------------- Run | Yrd Mat Sub Scr Turns Passed 5969 | 135 1323 827 3684 Spaces Moved 3436 | 73 545 416 2402 Core 94 | 7 . . 87 Treads 2806 | 66 545 416 1779 Legs . | . . . . Wheels 536 | . . . 536 Hover . | . . . . Flight . | . . . . Fastest Speed 50 | 50 160 160 50 Average Speed 151 | 149 160 160 147 Slowest Speed 3350 | 160 240 240 3350 Overloaded Moves . | . . . . Propulsion Burnouts . | . . . . Robots Hopped . | . . . . Potential Cave-ins . | . . . . Cave-ins Triggered . | . . . . Exploration Rate (%) 52 | 4 94 27 84 Regions Visited 3 Branch Regions 2 Pre-discovered Areas 6 | . 3 1 2 Known Exits Taken . | . . . . Unknown Exits Taken 3 | 1 1 1 . Scrap Searched 9 | . . 5 4 Spaces Dug . | . . . . Terrain Destroyed 21 | . . 18 3 Melee . | . . . . Projectile . | . . . . AOE 21 | . . 18 3 Terrain Rammed . | . . . . Walls Destroyed . | . . . . Machines Disabled . | . . . . Actions | -11 -10 -10 -8 --------- Run | Yrd Mat Sub Scr Total 3952 | 87 806 496 2563 Wait 149 | . 142 6 1 Move 3433 | 72 544 415 2402 Hop . | . . . . Pick Up 82 | 4 11 13 54 Fast Attach 14 | 6 1 . 7 Attach 18 | . 4 7 7 Detach 14 | . . . 14 Swap 9 | . 3 3 3 Drop 68 | . 1 4 63 Fire 158 | 5 98 47 8 Melee 5 | . . 1 4 Ram . | . . . . Kick . | . . . . Crush 2 | . 2 . . Escape Stasis . | . . . . Rewire . | . . . . Trap . | . . . . Miscellaneous . | . . . . Route ------- -11/Scrapyard -10/Materials (discovered 5 exits: *Mat x3 / Min / *Sub) -10/Subcaves (discovered 4 exits: *Mat x2 / [*Rec] / *Scr) -8/Scraptown (discovered 1 exit: [*Fac]) History --------- Turn | Location | Event 8 | -11/Scrapyard | Discovered new exit (range 13) 136 | -11/Scrapyard | Entered Materials 301 | -10/Materials | Build established: Mutant 390 | -10/Materials | Discovered new exit (range 15) 997 | -10/Materials | Discovered new exit (range 7) 1042 | -10/Materials | Discovered new exit (range 13) 1102 | -10/Materials | Lost 4 parts (1p1n1u1w) 1125 | -10/Materials | Discovered new exit (range 7) 1168 | -10/Materials | Learned location of 1 exit from Storage 1226 | -10/Materials | Identified exit to Materials 1226 | -10/Materials | Identified exit to Mines 1275 | -10/Materials | Learned location of Subcaves (-10) 1275 | -10/Materials | Core integrity fell below 50% 1314 | -10/Materials | Learned 2 Materials zone layouts 1342 | -10/Materials | Learned location of 1 exit from Storage 1384 | -10/Materials | Learned 2 Mines zone layouts 1459 | -10/Materials | Entered Subcaves 1460 | -10/Subcaves | Approached by a straggling Scientist 1460 | -10/Subcaves | Identified exit to Materials 1463 | -10/Subcaves | Learned location of Mines (-10) 1606 | -10/Subcaves | Discovered new exit (range 14) 1678 | -10/Subcaves | Lost 5 parts (1p2n2w) 1897 | -10/Subcaves | Scientist uncovered a shortcut to Scraptown 1902 | -10/Subcaves | Build established: Scavenger-Mutant 2046 | -10/Subcaves | Core integrity fell below 20% 2138 | -10/Subcaves | Visited 4L-MR0's lab 2158 | -10/Subcaves | Found Arachnoskeleton 2286 | -10/Subcaves | Entered Scraptown 2333 | -8/Scraptown | Heard Great Nut preacher, LISTEN AND RECITE! 2415 | -8/Scraptown | Build established: Mutant 2419 | -8/Scraptown | Scanned Subdweller tech in exchange for log data 2422 | -8/Scraptown | Learned location of Warlord (-4) 2424 | -8/Scraptown | Learned location of 1 exit from Research 2426 | -8/Scraptown | Learned location of 1 exit from Factory 2427 | -8/Scraptown | Learned Factory stockpile data 2429 | -8/Scraptown | Learned location of Testing (-3) 2455 | -8/Scraptown | Discovered new exit (range 11) 2953 | -8/Scraptown | Visited Cave Peace 2985 | -8/Scraptown | Visited Comm Corps 3059 | -8/Scraptown | Visited Artisan Demo Area 3094 | -8/Scraptown | Visited Shadow of the Wyrm 3110 | -8/Scraptown | Visited Symbiants 3166 | -8/Scraptown | Visited Cyclists 3211 | -8/Scraptown | Visited UFD Registry 3211 | -8/Scraptown | Registered with UFD as "Spikestep" 3253 | -8/Scraptown | Entered Cyclist Reading Room 3458 | -8/Scraptown | Visited LU-1G1's Boring Crew 3484 | -8/Scraptown | Visited Curators Association 3551 | -8/Scraptown | Visited Botcube Research 3562 | -8/Scraptown | Found Botcube 3586 | -8/Scraptown | Visited Science Testing Area 3607 | -8/Scraptown | Visited Infowarlord's Domain 3627 | -8/Scraptown | Visited DA-N13 Charitable Foundation 3646 | -8/Scraptown | Found DCF Scrap (27 items) 3826 | -8/Scraptown | Visited Scrap Suit Storage 3846 | -8/Scraptown | Found Scrap Suit 3874 | -8/Scraptown | Visited Derelict Rescue Squad 3883 | -8/Scraptown | Found DRS Beacon 3915 | -8/Scraptown | Visited Science Guys 4290 | -8/Scraptown | Found Exp. Sensor Array 5783 | -8/Scraptown | Met Optimus 5783 | -8/Scraptown | Accepted into 0bPrime 5832 | -8/Scraptown | Civil war broke out across Scraptown 5879 | -8/Scraptown | Found Prototype Slashing Weapon 5879 | -8/Scraptown | Identified DM-GVY's Chainsaw 5888 | -8/Scraptown | Found Prototype Wheel 5970 | -8/Scraptown | Destroyed self with Mini Grenade Launcher Last Messages --------------- 05843_ NU-DK0(x) destroyed. 05843_ Slug penetrates Machine. 05843_ Machine disabled. 05845_ YG-QBA(r): "0bPrime holds too much power!" 05853_ Enclosure breached. 05865_ Destroyed Autobeam. 05865_ Autobeam Turret destroyed. 05872_ Acquired Rocket Booster. 05879_ Acquired Prototype Slashing Weapon. 05879_ Identified DM-GVY's Chainsaw. 05883_ Enclosure breached. 05888_ Acquired Prototype Wheel. 05899_ Dropped Scythe. 05911_ Acquired 59 matter. 05921_ Dropped Hacking Suite. 05921_ Acquired Mak. Hacking Suite. 05923_ Acquired 108 matter. 05926_ Acquired 3 matter. 05927_ Dropped Lgt. Armor Plating. 05927_ Acquired Mak. Light Armor Plating. Map ----- +----------------------------------------------------+ | ?????????????????????????????????????????????????? | | ?????????????????????????????????????????????????? | | ?????????????????????????????????????????????????? | | ?????????????????????????????????????????????????? | | ?????????????????????????????????????????????????? | | ?????????????????????????????????????????????????? | | ?????????????????????????????????????????????????? | | ?????????????????????????????????????????????????? | | ?????????????????????????????????????????????????? | | ?????????????????????????????????????????????????? | | ?????????????????????????????????????????????????? | | ???????????????????????###???????????????????????? | | ??????????????????????## #??????????????????????? | | ??????????????????????# [??????????????????????? | | ??????????????????????? !??????????????????????? | | ??????????????????????? !!??????????????????????? | | ??????????????????????? *j=??????????????????????? | | ???????????????????????#[p#??????????????????????? | | ???????????????????????# !#??????????????????????? | | ???????????????????????#!%##?????????????????????? | | ??????????????????###### [##?????????????????????? | | ??????????????????###### ##?????????????????????? | | ???????????????"""" """# #?????????????????????? | | ????????????## ? "?"# #"" """""###??????????? | | ?? ?## " " ?"# ###"########??????????? | | ?? ####### ?## " "?"# @#"" """"##??????????? | | ?? # # ?## " " " # # !"""##??????????? | | ?? # # ?## " # # ![ =""##??????????? | | ?? # # ?## # #"! %[="""##??????????? | | ?? ?????"""""?"# #"*[!=!!%%=##??????????? | | ###### ########### ##### ##!#############???????? | | ###### "########## ##### ## #############???????? | | """"" " "" """""" """"" ""!"##? ##???????? | | = **/ ! =!=##? ##???????? | | ! * ="##? ##???????? | | !%[ ## ##???????? | | ! ! [ [ ="## ##???????? | | !!!! ! [[[/ *!%%!% ##???????? | | """""""""""""""""""""""" ["##! ##???????? | | """""""""""""""""""""""" ="## ##???????? | | #### ################"" !%"## ##???????? | | ###########"" =!"############???????? | | X"##??????##"" =%"############???????? | | "" "" ###????####"" * "## ##???????? | | "" "" X"##########"" "## ##???????? | | " " ######### #" "## ##???????? | | "" ##???????? | | "" [!! "## ##???????? | | " " ######### #""!![* ############???????? | | "" "" ""##########""!%=% "############???????? | +----------------------------------------------------+ Best States ------------- Heat Dissipation 25 Energy Generation 18 Energy Capacity 200 Matter Stores 300 Matter Capacity 300 Sight Range 16 Terrain Scan Density 10 Armor Coverage 150 Evasion (%) 50 Recoil Reduction 2 Item Schematics ----------------- None Robot Schematics ------------------ None Fabricated ------------ Nothing Repaired ---------- Nothing Alien Tech Used ----------------- None Achievements -------------- None Challenges ------------ None Game ------ Seed FrostFlakDeconstructor Manual? 0 Play Time 00:34:06 Cumulative 149.8 hours Start 2025.07.09 @ 20:28:05 End 2025.07.09 @ 21:08:49 Sessions 1 Manual Loads 0 Difficulty Rogue Special Mode None Game No. 166 Rogue 166 Adventurer 0 Explorer 0 Win Type - Total 3 Types 1/0/0/1/0/0/0/0/0/1 Lore% 65 Gallery% 61 Achievement% 53 Wizard Run 0 Options --------- Layout 1 ASCII 0 Keyboard 1 Movement Numpad Keybinds 0 Fullscreen 1 Font 32/SmallcapsGlow Map View 77x35 Zoom Use 0% Tactical HUD 1 Map Filters NONE Filters NONE Steam 1 RUN: 4994e162-43e6-4e7f-a366-e496ec4d2bda